fUSD/lending_fUSD_20260115
["ID","MTS","AMOUNT","RATE_DAILY","PERIOD"]
[402096363,1768517454010,-1035.17,0.00035616,10]
[402096364,1768517454021,-1393.26,0.00035616,10]
[402096365,1768517454030,-792.12,0.00035616,10]
[402096366,1768517454040,-951.55,0.00035616,10]
[402096367,1768517454050,-500.0,0.00035616,10]
[402096368,1768517454060,-500.0,0.00035616,10]
[402096369,1768517454070,-500.0,0.00035616,10]
[402096370,1768517454080,-500.0,0.00035616,10]
[402096371,1768517454091,-500.0,0.00035616,10]
[402096372,1768517454101,-500.0,0.00035616,10]
[402096373,1768517454112,-567.09155482,0.00035616,10]
[402096374,1768517454122,-1123.92,0.00035616,10]
[402096375,1768517454132,-500.0,0.00035616,10]
[402096376,1768517454143,-201.21733272,0.00035616,10]
[402096377,1768517454153,-625.67,0.00035616,10]
[402096378,1768517454163,-500.0,0.00035616,10]
[402096379,1768517454174,-674.73,0.00035616,10]
[402096380,1768517454184,-500.0,0.00035616,10]
[402096381,1768517454194,-500.0,0.00035616,10]
[402096382,1768517454204,-500.0,0.00035616,10]
[402096383,1768517454214,-500.0,0.00035616,10]
[402096384,1768517454224,-4002.29,0.00035616,10]
[402096385,1768517454234,-557.35,0.00035616,10]
[402096386,1768517454245,-500.0,0.00035616,10]
[402096387,1768517454255,-717.16,0.00035616,10]
[402096388,1768517454264,-500.0,0.00035616,10]
[402096389,1768517454274,-500.0,0.00035616,10]
[402096390,1768517454284,-1040.01,0.00035616,10]
[402096391,1768517454294,-1208.87,0.00035616,10]
[402096392,1768517454303,-1425.03,0.00035616,10]
[402096393,1768517454313,-1964.0,0.00035616,10]
[402096394,1768517454323,-529.30212288,0.00035616,10]
[402096395,1768517454334,-352.08902503,0.00035616,10]
[402096396,1768517454344,-500.0,0.00035616,10]
[402096397,1768517454354,-1015.47,0.00035616,10]
[402096398,1768517454363,-944.93,0.00035616,10]
[402096399,1768517454373,-500.0,0.00035616,10]
[402096400,1768517454383,-500.0,0.00035616,10]
[402096401,1768517454392,-1209.3,0.00035616,10]
[402096402,1768517454402,-551.4,0.00035616,10]
[402096403,1768517454412,-500.0,0.00035616,120]
[402096404,1768517454422,-462.91178022,0.00035616,10]
[402096405,1768517454432,-1025.95,0.00035616,10]
[402096406,1768517454441,-500.0,0.00035616,10]
[402096407,1768517454450,-500.0,0.00035616,10]
[402096408,1768517454460,-500.0,0.00035616,10]
[402096409,1768517454469,-552.2,0.00035616,10]
[402096410,1768517454480,-1782.99,0.00035616,10]
[402096411,1768517454490,-920.59,0.00035616,10]
[402096412,1768517454499,-701.0,0.00035616,10]
[402096413,1768517454509,-602.57,0.00035616,10]
[402096414,1768517454518,-1985.44,0.00035616,10]
[402096415,1768517454527,-500.0,0.00035616,10]
[402096416,1768517454538,-941.27,0.00035616,10]
[402096417,1768517454547,-212.57768674,0.00035616,10]
[402096418,1768517454557,-1632.9,0.00035616,10]
[402096419,1768517454566,-2396.27,0.00035616,10]
[402096420,1768517454576,-882.97,0.00035616,10]
[402096421,1768517454585,-557.40136352,0.00035616,10]
[402096422,1768517454595,-582.89109144,0.00035616,10]
[402096423,1768517454605,-882.45,0.00035616,10]
[402096424,1768517454614,-500.0,0.00035616,10]
[402096425,1768517454625,-500.0,0.00035616,10]
[402096426,1768517454638,-500.0,0.00035616,10]
[402096427,1768517454648,-500.0,0.00035616,10]
[402096428,1768517454658,-500.0,0.00035616,10]
[402096429,1768517454667,-500.0,0.00035616,10]
[402096430,1768517454679,-582.53,0.00035616,10]
[402096431,1768517454688,-1016.88,0.00035616,10]
[402096432,1768517454698,-2191.78,0.00035616,10]
[402096433,1768517454708,-943.35,0.00035616,10]
[402096434,1768517454718,-500.0,0.00035616,10]
[402096435,1768517454727,-1203.72,0.00035616,10]
[402096436,1768517454737,-500.0,0.00035616,10]
[402096437,1768517454746,-1678.19,0.00035616,10]
[402096438,1768517454757,-688.4,0.00035616,10]
[402096439,1768517454767,-747.93,0.00035616,10]
[402096440,1768517454778,-1023.83,0.00035616,10]
[402096441,1768517454787,-523.58,0.00035616,10]
[402096442,1768517454797,-500.0,0.00035616,10]
[402096443,1768517454807,-500.0,0.00035616,10]
[402096444,1768517454816,-500.0,0.00035616,10]
[402096445,1768517454826,-952.66,0.00035616,10]
[402096446,1768517454836,-500.0,0.00035616,10]
[402096447,1768517454847,-500.0,0.00035616,10]
[402096448,1768517454857,-500.0,0.00035616,10]
[402096449,1768517454866,-500.0,0.00035616,10]
[402096450,1768517454876,-500.0,0.00035616,10]
[402096451,1768517454886,-500.0,0.00035616,10]
[402096452,1768517454895,-1262.5,0.00035616,10]
[402096453,1768517454905,-751.82,0.00035616,10]
[402096454,1768517454914,-1325.0,0.00035616,10]
[402096455,1768517454924,-500.0,0.00035616,10]
[402096456,1768517454933,-516.88,0.00035616,10]
[402096457,1768517454943,-500.0,0.00035616,10]
[402096458,1768517454953,-800.19,0.00035616,10]
[402096459,1768517454963,-1729.59,0.00035616,10]
[402096460,1768517454972,-1081.08,0.00035616,10]
[402096461,1768517454982,-707.72,0.00035616,10]
[402096462,1768517454991,-949.35,0.00035616,10]
[402096463,1768517455001,-500.0,0.00035616,10]
[402096464,1768517455010,-500.0,0.00035616,10]
[402096465,1768517455020,-1404.74,0.00035616,10]
[402096466,1768517455029,-500.0,0.00035616,10]
[402096467,1768517455039,-500.0,0.00035616,10]
[402096468,1768517455048,-500.0,0.00035616,10]
[402096469,1768517455058,-926.47,0.00035616,10]
[402096470,1768517455067,-1118.24,0.00035616,10]
[402096471,1768517455076,-901.23,0.00035616,10]
[402096472,1768517455086,-500.0,0.00035616,10]
[402096473,1768517455095,-528.81,0.00035616,10]
[402096474,1768517455105,-1110.36,0.00035616,10]
[402096475,1768517455114,-500.0,0.00035616,10]
[402096476,1768517455124,-2651.34,0.00035616,10]
[402096477,1768517455134,-710.69,0.00035616,10]
[402096478,1768517455145,-1971.51,0.00035616,10]
[402096479,1768517455155,-500.0,0.00035616,10]
[402096480,1768517455166,-732.4,0.00035616,10]
[402096481,1768517455176,-1745.16,0.00035616,10]
[402096482,1768517455187,-500.0,0.00035616,10]
[402096483,1768517455197,-777.93,0.00035616,10]
[402096484,1768517455208,-500.0,0.00035616,10]
[402096485,1768517455217,-667.99,0.00035616,10]
[402096486,1768517455227,-2812.04,0.00035616,10]
[402096487,1768517455237,-500.0,0.00035616,10]
[402096488,1768517455247,-500.0,0.00035616,10]
[402096489,1768517455258,-1581.15,0.00035616,10]
[402096490,1768517455271,-500.0,0.00035616,10]
[402096491,1768517455281,-828.76,0.00035616,10]
[402096492,1768517455293,-500.0,0.00035616,10]
[402096493,1768517455303,-500.0,0.00035616,10]
[402096494,1768517455313,-367.65399676,0.00035616,10]
[402096495,1768517455323,-1094.61,0.00035616,10]
[402096496,1768517455334,-685.71,0.00035616,10]
[402096497,1768517455345,-500.0,0.00035616,10]
[402096498,1768517455355,-500.0,0.00035616,10]
[402096499,1768517455367,-242.94953322,0.00035616,10]
[402096500,1768517455587,-500.0,0.00035616,10]
[402096501,1768517455599,-500.0,0.00035616,2]
[402096502,1768517455609,-500.0,0.00035616,10]
[402096503,1768517455621,-500.0,0.00035616,10]
[402096504,1768517455633,-500.0,0.00035616,10]
[402096505,1768517455643,-500.0,0.00035616,10]
[402096506,1768517455654,-525.62,0.00035616,10]
[402096507,1768517455664,-3145.2,0.00035616,10]
[402096508,1768517455674,-500.0,0.00035616,10]
[402096509,1768517455684,-586.98,0.00035616,10]
[402096510,1768517455693,-500.0,0.00035616,10]
[402096511,1768517455704,-1602.63,0.00035616,10]
[402096512,1768517455718,-1233.74,0.00035616,10]
[402096513,1768517455727,-553.18600759,0.00035616,10]
[402096514,1768517455736,-599.77,0.00035616,10]
[402096515,1768517455746,-688.04,0.00035616,10]
[402096516,1768517455756,-731.27,0.00035616,10]
[402096517,1768517455765,-2419.01,0.00035616,10]
[402096518,1768517455775,-724.21,0.00035616,10]
[402096519,1768517455784,-669.66,0.00035616,10]
[402096520,1768517455793,-817.28,0.00035616,10]
[402096521,1768517455803,-500.0,0.00035616,10]
[402096522,1768517455812,-1445.38,0.00035616,10]
[402096523,1768517455822,-500.0,0.00035616,10]
[402096524,1768517455831,-8931.78,0.00035616,10]
[402096525,1768517455841,-500.0,0.00035616,10]
[402096526,1768517455851,-500.0,0.00035616,10]
[402096527,1768517455861,-500.0,0.00035616,10]
[402096528,1768517455870,-1638.74,0.00035616,10]
[402096529,1768517455880,-500.0,0.00035616,10]
[402096530,1768517455890,-500.0,0.00035616,10]
[402096531,1768517455899,-1111.8,0.00035616,10]
[402096532,1768517455908,-500.0,0.00035616,10]
[402096533,1768517455918,-1204.07,0.00035616,10]
[402096534,1768517455927,-1743.73,0.00035616,10]
[402096535,1768517455936,-1760.06,0.00035616,10]
[402096536,1768517455945,-1278.76,0.00035616,10]
[402096537,1768517455955,-500.0,0.00035616,10]
[402096538,1768517455964,-754.14,0.00035616,10]
[402096539,1768517455973,-500.0,0.00035616,10]
[402096540,1768517455983,-1150.25,0.00035616,10]
[402096541,1768517455993,-757.75,0.00035616,10]
[402096542,1768517456003,-694.57,0.00035616,10]
[402096543,1768517456012,-500.0,0.00035616,10]
[402096544,1768517456022,-500.0,0.00035616,10]
[402096545,1768517456031,-500.0,0.00035616,10]
[402096546,1768517456041,-633.45101718,0.00035616,10]
[402096547,1768517456051,-500.0,0.00035616,10]
[402096548,1768517456060,-500.0,0.00035616,10]
[402096549,1768517456070,-1189.69,0.00035616,10]
[402096550,1768517456083,-612.81,0.00035616,10]
[402096551,1768517456092,-500.0,0.00035616,10]
[402096552,1768517456102,-500.0,0.00035616,10]
[402096553,1768517456112,-636.13,0.00035616,10]
[402096554,1768517456121,-500.0,0.00035616,10]
[402096555,1768517456131,-500.0,0.00035616,10]
[402096556,1768517456141,-500.0,0.00035616,10]
[402096557,1768517456150,-500.0,0.00035616,10]
[402096558,1768517456159,-500.0,0.00035616,10]
[402096559,1768517456169,-2408.05,0.00035616,10]
[402096560,1768517456178,-1000.0,0.00035616,10]
[402096561,1768517456188,-1870.07,0.00035616,10]
[402096562,1768517456197,-500.0,0.00035616,10]
[402096563,1768517456207,-500.0,0.00035616,10]
[402096564,1768517456216,-1172.05,0.00035616,10]
[402096565,1768517456226,-500.0,0.00035616,10]
[402096566,1768517456235,-768.66,0.00035616,10]
[402096567,1768517456244,-583.7,0.00035616,10]
[402096568,1768517456253,-500.0,0.00035616,10]
[402096569,1768517456263,-500.0,0.00035616,10]
[402096570,1768517456275,-500.0,0.00035616,10]
[402096571,1768517456285,-200.0,0.00035616,120]
[402096572,1768517456295,-500.0,0.00035616,10]
[402096573,1768517456305,-500.0,0.00035616,10]
[402096574,1768517456314,-620.12,0.00035616,10]
[402096575,1768517456324,-500.0,0.00035616,10]
[402096576,1768517456334,-500.0,0.00035616,10]
[402096577,1768517456344,-500.0,0.00035616,10]
[402096578,1768517456355,-561.25920416,0.00035616,10]
[402096579,1768517456364,-254.94880815,0.00035616,10]
[402096580,1768517456374,-1498.63,0.00035616,10]
[402096581,1768517456384,-934.3,0.00035616,10]
[402096582,1768517456393,-500.0,0.00035616,10]
[402096583,1768517456403,-878.84,0.00035616,10]
[402096584,1768517456412,-597.27,0.00035616,10]
[402096585,1768517456422,-500.0,0.00035616,10]
[402096586,1768517456431,-500.0,0.00035616,10]
[402096587,1768517456441,-516.00874307,0.00035616,10]
[402096588,1768517456451,-500.0,0.00035616,10]
[402096589,1768517456460,-1200.39,0.00035616,10]
[402096590,1768517456472,-1460.26,0.00035616,10]
[402096591,1768517456481,-2092.77,0.00035616,10]
[402096592,1768517456491,-500.0,0.00035616,10]
[402096593,1768517456500,-601.3284006,0.00035616,10]
[402096594,1768517456510,-500.0,0.00035616,10]
[402096595,1768517456519,-500.0,0.00035616,10]
[402096596,1768517456528,-500.0,0.00035616,10]
[402096597,1768517456537,-500.0,0.00035616,10]
[402096598,1768517456547,-500.0,0.00035616,10]
[402096599,1768517456556,-500.0,0.00035616,10]
[402096600,1768517456565,-1083.74,0.00035616,10]
[402096601,1768517456574,-535.58,0.00035616,10]
[402096602,1768517456583,-500.0,0.00035616,10]
[402096603,1768517456593,-1722.85,0.00035616,10]
[402096604,1768517456603,-1656.71,0.00035616,10]
[402096605,1768517456612,-500.0,0.00035616,10]
[402096606,1768517456623,-1392.93,0.00035616,10]
[402096607,1768517456637,-500.0,0.00035616,10]
[402096608,1768517456646,-500.0,0.00035616,10]
[402096609,1768517456657,-1519.07,0.00035616,10]
[402096610,1768517456669,-523.21,0.00035616,10]
[402096611,1768517456679,-531.43509055,0.00035616,10]
[402096612,1768517456689,-702.48,0.00035616,10]
[402096613,1768517456699,-500.0,0.00035616,10]
[402096614,1768517456708,-1999.0,0.00035616,120]
[402096615,1768517456717,-1281.81,0.00035616,10]
[402096616,1768517456727,-2843.17,0.00035616,10]
[402096617,1768517456737,-500.0,0.00035616,10]
[402096618,1768517456747,-784.41,0.00035616,10]
[402096619,1768517456758,-807.53,0.00035616,10]
[402096620,1768517456767,-500.0,0.00035616,10]
[402096621,1768517456777,-1281.16,0.00035616,10]
[402096622,1768517456787,-695.76,0.00035616,10]
[402096623,1768517456796,-1747.17,0.00035616,10]
[402096624,1768517456805,-633.86,0.00035616,10]
[402096625,1768517456816,-573.52,0.00035616,10]
[402096626,1768517456827,-668.4,0.00035616,10]
[402096627,1768517456839,-3682.29,0.00035616,10]
[402096628,1768517456849,-500.0,0.00035616,10]
[402096629,1768517456859,-581.01,0.00035616,10]
[402096630,1768517456871,-683.38,0.00035616,10]
[402096631,1768517456882,-1518.29,0.00035616,10]
[402096632,1768517456893,-500.0,0.00035616,10]
[402096633,1768517456903,-500.0,0.00035616,10]
[402096634,1768517456914,-584.86,0.00035616,10]
[402096635,1768517456924,-500.0,0.00035616,10]
[402096636,1768517456935,-1156.25,0.00035616,10]
[402096637,1768517456946,-1355.51,0.00035616,10]
[402096638,1768517456956,-1833.8,0.00035616,10]
[402096639,1768517456966,-500.0,0.00035616,10]
[402096640,1768517456976,-1715.61,0.00035616,10]
[402096641,1768517456987,-785.41,0.00035616,10]
[402096642,1768517456997,-500.0,0.00035616,10]
[402096643,1768517457007,-500.0,0.00035616,10]
[402096644,1768517457018,-500.0,0.00035616,10]
[402096645,1768517457028,-500.0,0.00035616,10]
[402096646,1768517457038,-500.0,0.00035616,10]
[402096647,1768517457059,-500.0,0.00035616,10]
[402096648,1768517457072,-500.0,0.00035616,10]
[402096649,1768517457083,-1056.18,0.00035616,10]
[402096650,1768517457095,-1183.74,0.00035616,10]
[402096651,1768517457105,-500.0,0.00035616,10]
[402096652,1768517457114,-500.0,0.00035616,10]
[402096653,1768517457125,-1531.28,0.00035616,10]
[402096654,1768517457135,-1171.3,0.00035616,10]
[402096655,1768517457145,-500.0,0.00035616,10]
[402096656,1768517457156,-500.0,0.00035616,10]
[402096657,1768517457165,-3718.81,0.00035616,10]
[402096658,1768517457175,-595.52163215,0.00035616,10]
[402096659,1768517457185,-500.0,0.00035616,10]
[402096660,1768517457196,-1780.59,0.00035616,10]
[402096661,1768517457206,-709.63,0.00035616,10]
[402096662,1768517457216,-500.0,0.00035616,10]
[402096663,1768517457225,-500.0,0.00035616,10]
[402096664,1768517457236,-500.0,0.00035616,10]
[402096665,1768517457246,-586.77,0.00035616,10]
[402096666,1768517457255,-1112.6,0.00035616,10]
[402096667,1768517457266,-400.0,0.00035616,10]
[402096668,1768517457276,-660.49,0.00035616,10]
[402096669,1768517457286,-500.0,0.00035616,10]
[402096670,1768517457296,-500.0,0.00035616,10]
[402096671,1768517457306,-500.0,0.00035616,10]
[402096672,1768517457316,-639.25812546,0.00035616,10]
[402096673,1768517457327,-579.61,0.00035616,10]
[402096674,1768517457337,-1332.53,0.00035616,10]
[402096675,1768517457347,-500.0,0.00035616,10]
[402096676,1768517457356,-616.28,0.00035616,10]
[402096677,1768517457367,-1179.11,0.00035616,10]
[402096678,1768517457378,-694.2,0.00035616,10]
[402096679,1768517457387,-824.6,0.00035616,10]
[402096680,1768517457397,-2213.72,0.00035616,10]
[402096681,1768517457407,-500.0,0.00035616,10]
[402096682,1768517457416,-500.0,0.00035616,10]
[402096683,1768517457426,-500.0,0.00035616,10]
[402096684,1768517457437,-600.0,0.00035616,2]
[402096685,1768517457447,-722.61708931,0.00035873,63]
[402096686,1768517457458,-298.96994241,0.0003588,2]
[402096687,1768517457468,-500.0,0.00035889,2]
[402096688,1768517457478,-214.30030878,0.00035889,2]
[402096689,1768517457488,-500.0,0.00035889,10]
[402096690,1768517457498,-500.0,0.00035889,10]
[402096691,1768517457508,-500.0,0.00035889,10]
[402096692,1768517457517,-500.0,0.00035889,10]
[402096693,1768517457527,-500.0,0.00035889,10]
[402096694,1768517457538,-500.0,0.00035889,10]
[402096695,1768517457547,-500.0,0.0003589,10]
[402096696,1768517457557,-500.0,0.0003589,10]
[402096697,1768517457568,-579.88,0.0003589,10]
[402096698,1768517457578,-555.78,0.0003589,10]
[402096699,1768517457588,-500.0,0.0003589,10]
[402096700,1768517457598,-500.0,0.0003589,10]
[402096701,1768517457608,-752.65,0.0003589,10]
[402096702,1768517457618,-1042.17,0.0003589,10]
[402096703,1768517457631,-500.0,0.0003589,10]
[402096704,1768517457641,-983.62,0.0003589,10]
[402096705,1768517457650,-500.0,0.0003589,10]
[402096706,1768517457660,-500.0,0.0003589,10]
[402096707,1768517457672,-544.73,0.0003589,10]
[402096708,1768517457683,-500.0,0.0003589,10]
[402096709,1768517457695,-500.0,0.0003589,10]
[402096710,1768517457708,-1960.08,0.0003589,10]
[402096711,1768517457720,-500.0,0.0003589,10]
[402096712,1768517457731,-500.0,0.0003589,10]
[402096713,1768517457741,-680.4,0.0003589,10]
[402096714,1768517457754,-500.0,0.0003589,10]
[402096715,1768517457764,-809.31,0.0003589,10]
[402096716,1768517457775,-500.0,0.0003589,10]
[402096717,1768517457785,-500.0,0.0003589,10]
[402096718,1768517457795,-500.0,0.0003589,10]
[402096719,1768517457805,-500.0,0.0003589,10]
[402096720,1768517457815,-500.0,0.0003589,10]
[402096721,1768517457825,-557.01,0.0003589,10]
[402096722,1768517457835,-526.37,0.0003589,10]
[402096723,1768517457848,-500.0,0.0003589,10]
[402096724,1768517457858,-500.0,0.0003589,10]
[402096725,1768517457869,-1018.58,0.0003589,10]
[402096726,1768517457879,-500.0,0.0003589,10]
[402096727,1768517457888,-664.93,0.0003589,10]
[402096728,1768517457899,-500.0,0.0003589,10]
[402096729,1768517457909,-1030.93,0.0003589,10]
[402096730,1768517457919,-500.0,0.0003589,10]
[402096731,1768517457929,-500.0,0.0003589,10]
[402096732,1768517457940,-953.96,0.0003589,10]
[402096733,1768517457952,-555.18,0.0003589,10]
[402096734,1768517457963,-741.39,0.0003589,10]
[402096735,1768517457974,-500.0,0.0003589,10]
[402096736,1768517457985,-500.0,0.0003589,10]
[402096737,1768517457995,-500.0,0.0003589,10]
[402096738,1768517458006,-568.11,0.0003589,10]
[402096739,1768517458017,-500.0,0.0003589,10]
[402096740,1768517458027,-500.0,0.0003589,10]
[402096741,1768517458036,-500.0,0.0003589,10]
[402096742,1768517458045,-500.0,0.0003589,10]
[402096743,1768517458055,-557.76,0.0003589,10]
[402096744,1768517458064,-1138.36,0.0003589,10]
[402096745,1768517458074,-610.37,0.0003589,10]
[402096746,1768517458085,-1247.28,0.0003589,10]
[402096747,1768517458095,-631.95,0.0003589,10]
[402096748,1768517458105,-917.68,0.0003589,10]
[402096749,1768517458115,-500.0,0.0003589,10]
[402096750,1768517458125,-500.0,0.0003589,10]
[402096751,1768517458135,-500.0,0.0003589,10]
[402096752,1768517458144,-500.0,0.0003589,10]
[402096753,1768517458154,-500.0,0.0003589,10]
[402096754,1768517458163,-500.0,0.0003589,10]
[402096755,1768517458173,-688.78,0.0003589,10]
[402096756,1768517458182,-500.0,0.0003589,10]
[402096757,1768517458191,-500.0,0.0003589,10]
[402096758,1768517458201,-1088.0,0.0003589,10]
[402096759,1768517458211,-1775.49,0.0003589,10]
[402096760,1768517458220,-500.0,0.0003589,10]
[402096761,1768517458230,-1283.99,0.0003589,10]
[402096762,1768517458239,-500.0,0.0003589,10]
[402096763,1768517458249,-500.0,0.0003589,120]
[402096764,1768517458259,-500.0,0.0003589,10]
[402096765,1768517458269,-936.07,0.0003589,10]
[402096766,1768517458279,-1168.85,0.0003589,10]
[402096767,1768517458288,-500.0,0.0003589,10]
[402096768,1768517458298,-675.28,0.0003589,10]
[402096769,1768517458308,-500.0,0.0003589,10]
[402096770,1768517458317,-256.02306752,0.0003589,10]
[402096771,1768517458326,-500.0,0.0003589,10]
[402096772,1768517458336,-500.0,0.0003589,10]
[402096773,1768517458345,-1055.44,0.0003589,10]
[402096774,1768517458354,-500.0,0.0003589,10]
[402096775,1768517458364,-500.0,0.0003589,10]
[402096776,1768517458373,-500.0,0.0003589,10]
[402096777,1768517458383,-554.49,0.0003589,10]
[402096778,1768517458392,-647.02,0.0003589,10]
[402096779,1768517458402,-500.0,0.0003589,10]
[402096780,1768517458411,-500.0,0.0003589,10]
[402096781,1768517458421,-774.3,0.0003589,10]
[402096782,1768517458431,-500.0,0.0003589,10]
[402096783,1768517458440,-655.59,0.0003589,10]
[402096784,1768517458449,-500.0,0.0003589,10]
[402096785,1768517458459,-500.0,0.0003589,10]
[402096786,1768517458468,-500.0,0.0003589,10]
[402096787,1768517458477,-500.0,0.0003589,10]
[402096788,1768517458488,-292.56317072,0.0003589,10]
[402096789,1768517458498,-500.0,0.0003589,10]
[402096790,1768517458509,-625.96,0.0003589,10]
[402096791,1768517458520,-1030.71,0.0003589,10]
[402096792,1768517458531,-500.0,0.0003589,10]
[402096793,1768517458541,-500.0,0.0003589,10]
[402096794,1768517458550,-500.0,0.0003589,10]
[402096795,1768517458561,-500.0,0.0003589,10]
[402096796,1768517458570,-500.0,0.0003589,10]
[402096797,1768517458580,-500.0,0.0003589,10]
[402096798,1768517458590,-292.62344382,0.0003589,10]
[402096799,1768517458599,-515.67,0.0003589,10]
[402096800,1768517458610,-500.0,0.0003589,10]
[402096801,1768517458620,-689.83,0.0003589,10]
[402096802,1768517458633,-605.58,0.0003589,10]
[402096803,1768517458642,-500.0,0.0003589,10]
[402096804,1768517458652,-986.08,0.0003589,10]
[402096805,1768517458663,-500.0,0.0003589,10]
[402096806,1768517458677,-500.0,0.0003589,10]
[402096807,1768517458687,-500.0,0.0003589,10]
[402096808,1768517458698,-151.0,0.0003589,10]
[402096809,1768517458709,-649.15,0.0003589,10]
[402096810,1768517458726,-500.0,0.0003589,10]
[402096811,1768517458745,-500.0,0.0003589,10]
[402096812,1768517458764,-540.62303748,0.0003589,10]
[402096813,1768517458773,-1358.1,0.0003589,10]
[402096814,1768517458783,-500.0,0.0003589,10]
[402096815,1768517458792,-671.77,0.0003589,10]
[402096816,1768517458802,-500.0,0.0003589,10]
[402096817,1768517458812,-1147.26,0.0003589,10]
[402096818,1768517458821,-500.0,0.0003589,10]
[402096819,1768517458830,-500.0,0.0003589,10]
[402096820,1768517458839,-725.53,0.0003589,10]
[402096821,1768517458849,-678.39,0.0003589,10]
[402096822,1768517458859,-500.0,0.0003589,10]
[402096823,1768517458870,-500.0,0.0003589,10]
[402096824,1768517458879,-500.0,0.0003589,10]
[402096825,1768517458888,-612.34,0.0003589,10]
[402096826,1768517458898,-500.0,0.0003589,10]
[402096827,1768517458908,-500.0,0.0003589,10]
[402096828,1768517458917,-500.0,0.0003589,10]
[402096829,1768517458927,-574.59,0.0003589,10]
[402096830,1768517458937,-500.0,0.0003589,10]
[402096831,1768517458947,-635.66,0.0003589,10]
[402096832,1768517458957,-500.0,0.0003589,10]
[402096833,1768517458966,-500.0,0.0003589,10]
[402096834,1768517458976,-500.0,0.0003589,10]
[402096835,1768517458986,-500.0,0.0003589,10]
[402096836,1768517458995,-500.0,0.0003589,10]
[402096837,1768517459004,-500.0,0.0003589,10]
[402096838,1768517459014,-907.4,0.0003589,10]
[402096839,1768517459023,-500.0,0.0003589,10]
[402096840,1768517459032,-500.0,0.0003589,120]
[402096841,1768517459042,-507.21342022,0.0003589,10]
[402096842,1768517459051,-650.48,0.0003589,10]
[402096843,1768517459061,-500.0,0.0003589,10]
[402096844,1768517459070,-500.0,0.0003589,10]
[402096845,1768517459081,-500.0,0.0003589,10]
[402096846,1768517459090,-500.0,0.0003589,10]
[402096847,1768517459099,-500.0,0.0003589,10]
[402096848,1768517459109,-500.0,0.0003589,10]
[402096849,1768517459119,-500.0,0.0003589,10]
[402096850,1768517459128,-1171.76,0.0003589,10]
[402096851,1768517459138,-928.17,0.0003589,10]
[402096852,1768517459147,-500.0,0.0003589,10]
[402096853,1768517459157,-500.0,0.0003589,10]
[402096854,1768517459167,-973.55,0.0003589,10]
[402096855,1768517459177,-500.0,0.0003589,10]
[402096856,1768517459437,-1557.23,0.0003589,10]
[402096857,1768517459447,-500.0,0.0003589,10]
[402096858,1768517459457,-236.07007542,0.0003589,10]
[402096859,1768517459467,-500.0,0.0003589,10]
[402096860,1768517459476,-901.89,0.0003589,10]
[402096861,1768517459486,-570.21,0.0003589,10]
[402096862,1768517459496,-500.0,0.0003589,10]